fUST/lending_fUST_20241120
["ID","MTS","AMOUNT","RATE_DAILY","PERIOD"]
[342704376,1732053061562,-346.733515,0.00024657,7]
[342704378,1732053061573,-4593.05,0.00024657,7]
[342704380,1732053061583,-500.0,0.00024657,7]
[342704382,1732053061592,-545.89,0.00024657,7]
[342704384,1732053061602,-500.0,0.00024657,7]
[342704386,1732053061611,-2043.15,0.00024657,7]
[342704388,1732053061621,-500.0,0.00024657,7]
[342704390,1732053061631,-500.0,0.00024657,7]
[342704392,1732053061640,-1257.15,0.00024657,7]
[342704394,1732053061649,-500.0,0.00024657,7]
[342704396,1732053061659,-151.0,0.00024658,7]
[342704398,1732053061668,-151.0,0.00024658,7]
[342704400,1732053061677,-151.0,0.00024658,7]
[342704402,1732053061687,-151.0,0.00024658,7]
[342704404,1732053061697,-151.0,0.00024658,7]
[342704406,1732053061707,-380.0,0.00024658,2]
[342704408,1732053061717,-250.0,0.00024681,2]
[342704410,1732053061726,-7300.43,0.000247,14]
[342704412,1732053061736,-3680.94,0.000247,14]
[342704414,1732053061746,-5814.48136773,0.000248,2]
[342704416,1732053061755,-500.0,0.00024931,2]
[342704418,1732053061764,-500.0,0.00024931,7]
[342704420,1732053061774,-508.57167863,0.00024931,7]
[342704422,1732053061784,-978.1,0.00024931,7]
[342704424,1732053061794,-500.0,0.00024931,7]
[342704426,1732053061804,-500.0,0.00024931,7]
[342704428,1732053061814,-500.0,0.00024931,7]
[342704430,1732053061825,-500.0,0.00024931,7]
[342704432,1732053061834,-510.92,0.00024931,7]
[342704434,1732053061844,-500.0,0.00024931,7]
[342704437,1732053061854,-500.0,0.00024931,7]
[342704439,1732053061865,-569.3,0.00024931,7]
[342704441,1732053061875,-500.0,0.00024931,7]
[342704443,1732053061885,-718.03,0.00024931,7]
[342704445,1732053061895,-500.0,0.00024931,7]
[342704447,1732053061904,-500.0,0.00024931,7]
[342704449,1732053061915,-500.0,0.00024931,7]
[342704451,1732053061926,-772.0,0.00024931,7]
[342704453,1732053061936,-633.4,0.00024931,7]
[342704455,1732053061946,-500.0,0.00024931,7]
[342704457,1732053061955,-500.0,0.00024931,7]
[342704459,1732053061965,-584.93,0.00024931,7]
[342704461,1732053061974,-500.0,0.00024931,7]
[342704463,1732053061983,-500.0,0.00024931,7]
[342704465,1732053061993,-432.40441077,0.00024931,7]
[342704467,1732053062003,-500.0,0.00024931,7]
[342704469,1732053062012,-500.0,0.00024931,7]
[342704471,1732053062022,-544.56,0.00024931,7]
[342704473,1732053062032,-200.0,0.00024931,2]
[342704475,1732053062042,-500.0,0.00024931,7]
[342704477,1732053062051,-681.78,0.00024931,7]
[342704479,1732053062061,-500.0,0.00024931,7]
[342704481,1732053062071,-500.0,0.00024931,7]
[342704482,1732053062080,-500.0,0.00024931,7]
[342704483,1732053062090,-271.555443,0.00024931,7]
[342704484,1732053062099,-500.0,0.00024931,7]
[342704485,1732053062108,-271.555443,0.00024931,7]
[342704486,1732053062117,-500.0,0.00024931,7]
[342704487,1732053062127,-500.0,0.00024931,7]
[342704488,1732053062136,-500.0,0.00024931,7]
[342704489,1732053062145,-500.0,0.00024931,7]
[342704490,1732053062154,-500.0,0.00024931,7]
[342704491,1732053062164,-469.06,0.00024931,7]
[342704493,1732053062174,-151.0,0.00024931,7]
[342704495,1732053062183,-500.0,0.00024931,7]
[342704497,1732053062193,-543.11,0.00024931,7]
[342704499,1732053062204,-500.0,0.00024931,7]
[342704501,1732053062214,-500.0,0.00024931,7]
[342704503,1732053062224,-500.0,0.00024931,7]
[342704505,1732053062234,-500.0,0.00024931,7]
[342704507,1732053062244,-500.0,0.00024931,7]
[342704509,1732053062253,-801.54,0.00024931,7]
[342704511,1732053062266,-500.0,0.00024931,7]
[342704513,1732053062276,-628.19,0.00024931,7]
[342704515,1732053062286,-233.52,0.00024931,7]
[342704517,1732053062296,-2435.62421,0.00024931,7]
[342704519,1732053062306,-2435.62421,0.00024931,7]
[342704521,1732053062315,-500.0,0.00024931,7]
[342704523,1732053062326,-204.46,0.00024931,7]
[342704525,1732053062335,-593.36,0.00024931,7]
[342704527,1732053062345,-826.57,0.00024931,7]
[342704529,1732053062355,-500.0,0.00024931,7]
[342704531,1732053062364,-540.65,0.00024931,7]
[342704533,1732053062374,-500.0,0.00024931,7]
[342704535,1732053062384,-500.0,0.00024931,7]
[342704537,1732053062394,-651.22,0.00024931,7]
[342704539,1732053062404,-551.438512,0.00024931,7]
[342704541,1732053062413,-500.0,0.00024931,7]
[342704543,1732053062423,-551.438512,0.00024931,7]
[342704545,1732053062432,-500.0,0.00024931,7]
[342704547,1732053062441,-12500.46,0.00024931,7]
[342704549,1732053062451,-1568.28,0.00024931,7]
[342704551,1732053062460,-777.01,0.00024931,7]
[342704553,1732053062469,-6550.16,0.00024931,7]
[342704555,1732053062479,-1076.51,0.00024931,7]
[342704557,1732053062488,-500.0,0.00024931,7]
[342704559,1732053062498,-288.549468,0.00024931,7]
[342704561,1732053062507,-288.549468,0.00024931,7]
[342704563,1732053062516,-1659.74,0.00024931,7]
[342704565,1732053062526,-500.0,0.00024931,7]
[342704567,1732053062535,-205.21,0.00024931,7]
[342704569,1732053062545,-949.395704,0.00024931,7]
[342704571,1732053062554,-266.423799,0.00024931,7]
[342704573,1732053062564,-500.0,0.00024931,7]
[342704575,1732053062576,-500.0,0.00024931,7]
[342704577,1732053062585,-949.395704,0.00024931,7]
[342704579,1732053062595,-266.423799,0.00024931,7]
[342704581,1732053062604,-500.0,0.00024931,7]
[342704583,1732053062613,-612.21,0.00024931,7]
[342704585,1732053062623,-500.0,0.00024931,7]
[342704587,1732053062632,-563.73,0.00024931,7]
[342704589,1732053062641,-500.0,0.00024931,7]
[342704591,1732053062651,-500.0,0.00024931,7]
[342704593,1732053062660,-174.56,0.00024931,7]
[342704595,1732053062670,-313.765208,0.00024931,7]
[342704597,1732053062680,-597.43,0.00024931,7]
[342704599,1732053062689,-500.0,0.00024931,7]
[342704601,1732053062699,-313.765208,0.00024931,7]
[342704603,1732053062709,-500.0,0.00024931,7]
[342704605,1732053062718,-500.0,0.00024931,7]
[342704607,1732053062728,-651.28,0.00024931,7]
[342704609,1732053062738,-151.0,0.00024931,7]
[342704611,1732053062747,-151.0,0.00024931,7]
[342704613,1732053062757,-500.0,0.00024931,7]
[342704615,1732053062767,-343.60362396,0.00024931,7]
[342704617,1732053062776,-500.0,0.00024931,7]
[342704619,1732053062785,-444.92,0.00024931,7]
[342704621,1732053062795,-500.0,0.00024931,7]
[342704623,1732053062804,-646.08,0.00024931,7]
[342704625,1732053062818,-880.58,0.00024931,7]
[342704627,1732053062827,-500.0,0.00024931,7]
[342704629,1732053062838,-524.52,0.00024931,7]
[342704631,1732053062847,-4172.35,0.00024931,7]
[342704633,1732053062856,-558.47,0.00024931,7]
[342704635,1732053062865,-237.25678269,0.00024931,7]
[342704637,1732053062875,-810.46,0.00024931,7]
[342704639,1732053062884,-500.0,0.00024931,7]
[342704641,1732053062893,-500.0,0.00024931,7]
[342704643,1732053062903,-225.2892,0.00024931,7]
[342704645,1732053062912,-225.2892,0.00024931,7]
[342704647,1732053062921,-500.0,0.00024931,7]
[342704649,1732053062930,-631.33,0.00024931,7]
[342704651,1732053062939,-1883.82,0.00024931,7]
[342704653,1732053062948,-4034.74,0.00024931,7]
[342704655,1732053062957,-500.0,0.00024931,7]
[342704657,1732053062967,-286.41,0.00024931,7]
[342704659,1732053062976,-864.59,0.00024931,7]
[342704661,1732053062988,-196.652764,0.00024931,7]
[342704663,1732053062997,-196.652764,0.00024931,7]
[342704665,1732053063007,-1666.75,0.00024931,7]
[342704667,1732053063016,-346.733515,0.00024931,7]
[342704669,1732053063026,-346.733515,0.00024931,7]
[342704671,1732053063035,-4593.05,0.00024931,7]
[342704673,1732053063045,-500.0,0.00024931,7]
[342704675,1732053063055,-545.89,0.00024931,7]
[342704677,1732053063064,-500.0,0.00024931,7]
[342704679,1732053063078,-2043.15,0.00024931,7]
[342704681,1732053063088,-500.0,0.00024931,7]
[342704683,1732053063097,-500.0,0.00024931,7]
[342704685,1732053063107,-1257.15,0.00024931,7]
[342704687,1732053063117,-500.0,0.00024931,7]
[342704689,1732053063126,-1206.77221177,0.0002497,2]
[342704691,1732053063135,-353.408902,0.0002497,7]
[342704693,1732053063145,-353.408902,0.0002497,7]
[342704695,1732053063156,-833.312861,0.0002497,7]
[342704697,1732053063166,-833.312861,0.0002497,7]
[342704699,1732053063175,-300.0,0.00025,2]
[342704701,1732053063184,-300.0,0.00025,2]
[342704704,1732053063194,-272.2,0.00025,2]
[342704706,1732053063203,-503.570534,0.00025,17]
[342704708,1732053063213,-303.07576439,0.00025,2]
[342704710,1732053063222,-2000.0,0.0002502,2]
[342704712,1732053063231,-300.0,0.000251,2]
[342704714,1732053063240,-197.6,0.000251,2]
[342704716,1732053063250,-500.0,0.00025205,2]
[342704718,1732053063259,-500.0,0.00025205,7]
[342704719,1732053063273,-978.1,0.00025205,7]
[342704722,1732053063282,-500.0,0.00025205,7]
[342704724,1732053063292,-500.0,0.00025205,7]
[342704726,1732053063301,-500.0,0.00025205,7]
[342704728,1732053063313,-272.81,0.00025205,7]
[342704730,1732053063327,-151.0,0.00025205,7]
[342704732,1732053063337,-510.92,0.00025205,7]
[342704734,1732053063349,-500.0,0.00025205,7]
[342704736,1732053063358,-500.0,0.00025205,7]
[342704738,1732053063368,-151.0,0.00025205,7]
[342704740,1732053063377,-657.398812,0.00025205,7]
[342704742,1732053063387,-657.398812,0.00025205,7]
[342704744,1732053063397,-569.3,0.00025205,7]
[342704746,1732053063406,-500.0,0.00025205,7]
[342704748,1732053063416,-718.03,0.00025205,7]
[342704750,1732053063425,-422.80672962,0.00025205,7]
[342704752,1732053063435,-151.0,0.00025205,7]
[342704754,1732053063445,-500.0,0.00025205,7]
[342704756,1732053063455,-500.0,0.00025205,7]
[342704758,1732053063464,-772.0,0.00025205,7]
[342704760,1732053063474,-500.0,0.00025205,7]
[342704762,1732053063484,-172.99963236,0.00025205,7]
[342704764,1732053063494,-584.93,0.00025205,7]
[342704766,1732053063503,-500.0,0.00025205,7]
[342704768,1732053063513,-500.0,0.00025205,7]
[342704770,1732053063522,-500.0,0.00025205,7]
[342704772,1732053063532,-500.0,0.00025205,7]
[342704774,1732053063542,-544.56,0.00025205,7]
[342704776,1732053063552,-200.0,0.00025205,2]
[342704778,1732053063561,-500.0,0.00025205,7]
[342704780,1732053063573,-681.78,0.00025205,7]
[342704782,1732053063583,-151.0,0.00025205,7]
[342704784,1732053063593,-500.0,0.00025205,7]
[342704786,1732053063602,-500.0,0.00025205,7]
[342704788,1732053063612,-500.0,0.00025205,7]
[342704790,1732053063622,-500.0,0.00025205,7]
[342704792,1732053063631,-463.32,0.00025205,7]
[342704794,1732053063641,-629.534209,0.00025205,7]
[342704796,1732053063650,-500.0,0.00025205,7]
[342704798,1732053063660,-500.0,0.00025205,7]
[342704800,1732053063669,-629.534209,0.00025205,7]
[342704802,1732053063678,-500.0,0.00025205,7]
[342704804,1732053063688,-500.0,0.00025205,7]
[342704806,1732053063697,-255.35,0.00025205,7]
[342704809,1732053063707,-543.11,0.00025205,7]
[342704811,1732053063717,-500.0,0.00025205,7]
[342704823,1732053063826,-500.0,0.00025205,7]
[342704825,1732053063837,-500.0,0.00025205,7]
[342704828,1732053063847,-378.69757057,0.00025205,7]
[342704830,1732053063857,-567.83,0.00025205,7]
[342704832,1732053063866,-801.54,0.00025205,7]
[342704834,1732053063875,-500.0,0.00025205,7]
[342704836,1732053063885,-628.19,0.00025205,7]
[342704838,1732053063895,-500.0,0.00025205,7]
[342704840,1732053063904,-593.36,0.00025205,7]
[342704842,1732053063913,-826.57,0.00025205,7]
[342704844,1732053063923,-500.0,0.00025205,7]
[342704846,1732053063932,-540.65,0.00025205,7]
[342704848,1732053063941,-500.0,0.00025205,7]
[342704850,1732053063951,-500.0,0.00025205,7]
[342704852,1732053063961,-651.22,0.00025205,7]
[342704854,1732053063970,-281.78144507,0.00025205,7]
[342704856,1732053063980,-500.0,0.00025205,7]
[342704858,1732053063989,-12500.46,0.00025205,7]
[342704860,1732053063999,-1568.28,0.00025205,7]
[342704862,1732053064008,-777.01,0.00025205,7]
[342704864,1732053064018,-6550.16,0.00025205,7]
[342704865,1732053064027,-1076.51,0.00025205,7]
[342704866,1732053064037,-500.0,0.00025205,7]
[342704867,1732053064046,-1659.74,0.00025205,7]
[342704868,1732053064056,-500.0,0.00025205,7]
[342704869,1732053064065,-500.0,0.00025205,7]
[342704870,1732053064077,-500.0,0.00025205,7]
[342704871,1732053064086,-500.0,0.00025205,7]
[342704872,1732053064096,-612.21,0.00025205,7]
[342704873,1732053064105,-500.0,0.00025205,7]
[342704874,1732053064115,-563.73,0.00025205,7]
[342704876,1732053064125,-500.0,0.00025205,7]
[342704878,1732053064135,-500.0,0.00025205,7]
[342704880,1732053064145,-597.43,0.00025205,7]
[342704882,1732053064155,-500.0,0.00025205,7]
[342704884,1732053064164,-500.0,0.00025205,7]
[342704886,1732053064173,-500.0,0.00025205,7]
[342704888,1732053064182,-651.28,0.00025205,7]
[342704890,1732053064192,-529.16440532,0.00025205,7]
[342704892,1732053064201,-205.04597548,0.00025205,7]
[342704894,1732053064211,-500.0,0.00025205,7]
[342704896,1732053064221,-646.08,0.00025205,7]
[342704898,1732053064231,-880.58,0.00025205,7]
[342704900,1732053064241,-500.0,0.00025205,7]
[342704902,1732053064251,-524.52,0.00025205,7]
[342704905,1732053064262,-4172.35,0.00025205,7]
[342704906,1732053064275,-558.47,0.00025205,7]
[342704908,1732053064285,-810.46,0.00025205,7]
[342704911,1732053064296,-500.0,0.00025205,7]
[342704913,1732053064306,-500.0,0.00025205,7]
[342704914,1732053064316,-500.0,0.00025205,7]
[342704916,1732053064327,-631.33,0.00025205,7]
[342704919,1732053064336,-1883.82,0.00025205,7]
[342704921,1732053064347,-4034.74,0.00025205,7]
[342704922,1732053064357,-500.0,0.00025205,7]
[342704924,1732053064366,-864.59,0.00025205,7]
[342704926,1732053064375,-1666.75,0.00025205,7]
[342704928,1732053064385,-4593.05,0.00025205,7]
[342704930,1732053064395,-500.0,0.00025205,7]
[342704932,1732053064404,-545.89,0.00025205,7]
[342704935,1732053064414,-500.0,0.00025205,7]
[342704937,1732053064424,-2043.15,0.00025205,7]
[342704939,1732053064434,-500.0,0.00025205,7]
[342704941,1732053064444,-500.0,0.00025205,7]
[342704943,1732053064454,-1257.15,0.00025205,7]
[342704945,1732053064463,-500.0,0.00025205,7]
[342704947,1732053064473,-350.0,0.00025229,2]
[342704949,1732053064483,-303.07576439,0.0002525,2]
[342704951,1732053064493,-3200.0,0.0002525,2]
[342704953,1732053064502,-151.0,0.0002525,2]
[342704955,1732053064511,-500.0,0.00025305,7]
[342704957,1732053064521,-744.92625185,0.00025479,2]
[342704959,1732053064531,-500.0,0.00025479,7]
[342704961,1732053064540,-978.1,0.00025479,7]
[342704963,1732053064550,-500.0,0.00025479,7]
[342704965,1732053064560,-204.42465787,0.00025479,7]
[342704967,1732053064570,-500.0,0.00025479,7]
[342704969,1732053064580,-510.92,0.00025479,7]
[342704971,1732053064590,-500.0,0.00025479,7]
[342704973,1732053064601,-500.0,0.00025479,7]
[342704975,1732053064611,-569.3,0.00025479,7]
[342704977,1732053064620,-500.0,0.00025479,7]
[342704979,1732053064630,-718.03,0.00025479,7]
[342704981,1732053064639,-500.0,0.00025479,7]
[342704983,1732053064649,-500.0,0.00025479,7]
[342704985,1732053064659,-772.0,0.00025479,7]
[342704987,1732053064668,-408.02231646,0.00025479,7]
[342704989,1732053064678,-584.93,0.00025479,7]
[342704991,1732053064688,-500.0,0.00025479,7]
[342704993,1732053064697,-497.48192322,0.00025479,7]
[342704995,1732053064707,-151.72106202,0.00025479,7]
[342704997,1732053064717,-500.0,0.00025479,7]
[342705000,1732053064727,-544.56,0.00025479,7]
[342705002,1732053064737,-200.0,0.00025479,2]
[342705004,1732053064747,-500.0,0.00025479,7]
[342705006,1732053064757,-681.78,0.00025479,7]
[342705008,1732053064767,-414.28,0.00025479,7]
[342705009,1732053064777,-500.0,0.00025479,7]
[342705011,1732053064787,-500.0,0.00025479,7]
[342705014,1732053064797,-500.0,0.00025479,7]
[342705015,1732053064806,-500.0,0.00025479,7]
[342705017,1732053064816,-500.0,0.00025479,7]
[342705020,1732053064830,-500.0,0.00025479,7]
[342705021,1732053064839,-500.0,0.00025479,7]
[342705024,1732053064850,-543.11,0.00025479,7]
[342705026,1732053064860,-500.0,0.00025479,7]
[342705028,1732053064870,-500.0,0.00025479,7]
[342705030,1732053064879,-500.0,0.00025479,7]
[342705032,1732053064890,-801.54,0.00025479,7]
[342705034,1732053064900,-500.0,0.00025479,7]
[342705036,1732053064909,-628.19,0.00025479,7]
[342705038,1732053064919,-519.97,0.00025479,7]
[342705040,1732053064929,-593.36,0.00025479,7]
[342705042,1732053064939,-826.57,0.00025479,7]
[342705044,1732053064948,-500.0,0.00025479,7]
[342705046,1732053064958,-540.65,0.00025479,7]
[342705048,1732053064967,-223.09,0.00025479,7]
[342705050,1732053064977,-500.0,0.00025479,7]
[342705052,1732053064987,-651.22,0.00025479,7]
[342705054,1732053064997,-551.438512,0.00025479,7]
[342705056,1732053065007,-551.438512,0.00025479,7]
[342705058,1732053065017,-500.0,0.00025479,7]
[342705060,1732053065029,-12500.46,0.00025479,7]
[342705062,1732053065038,-1568.28,0.00025479,7]
[342705064,1732053065047,-777.01,0.00025479,7]
[342705066,1732053065057,-6550.16,0.00025479,7]
[342705068,1732053065066,-1076.51,0.00025479,7]
[342705070,1732053065078,-500.0,0.00025479,7]
[342705072,1732053065088,-288.549468,0.00025479,7]
[342705074,1732053065097,-288.549468,0.00025479,7]
[342705076,1732053065107,-1659.74,0.00025479,7]
[342705078,1732053065117,-500.0,0.00025479,7]
[342705081,1732053065126,-949.395704,0.00025479,7]
[342705083,1732053065135,-266.423799,0.00025479,7]
[342705085,1732053065145,-610.3,0.00025479,7]
[342705086,1732053065154,-949.395704,0.00025479,7]
[342705088,1732053065163,-500.0,0.00025479,7]
[342705090,1732053065173,-266.423799,0.00025479,7]
[342705093,1732053065182,-389.83,0.00025479,7]
[342705095,1732053065192,-612.21,0.00025479,7]
[342705097,1732053065202,-500.0,0.00025479,7]
[342705099,1732053065211,-563.73,0.00025479,7]
[342705101,1732053065220,-500.0,0.00025479,7]
[342705103,1732053065231,-500.0,0.00025479,7]
[342705104,1732053065240,-313.765208,0.00025479,7]
[342705105,1732053065250,-597.43,0.00025479,7]
[342705106,1732053065259,-500.0,0.00025479,7]
[342705107,1732053065272,-313.765208,0.00025479,7]
[342705108,1732053065283,-500.0,0.00025479,7]
[342705109,1732053065292,-500.0,0.00025479,7]
[342705110,1732053065302,-651.28,0.00025479,7]
[342705111,1732053065312,-151.0,0.00025479,7]
[342705112,1732053065324,-151.0,0.00025479,7]
[342705113,1732053065338,-500.0,0.00025479,7]
[342705114,1732053065350,-646.08,0.00025479,7]
[342705115,1732053065360,-880.58,0.00025479,7]
[342705116,1732053065369,-500.0,0.00025479,7]
[342705118,1732053065379,-524.52,0.00025479,7]
[342705120,1732053065389,-4172.35,0.00025479,7]
[342705122,1732053065398,-558.47,0.00025479,7]
[342705124,1732053065408,-810.46,0.00025479,7]
[342705127,1732053065417,-500.0,0.00025479,7]
[342705128,1732053065427,-500.0,0.00025479,7]
[342705130,1732053065438,-225.2892,0.00025479,7]
[342705133,1732053065448,-225.2892,0.00025479,7]
[342705135,1732053065457,-500.0,0.00025479,7]
[342705137,1732053065466,-631.33,0.00025479,7]
[342705139,1732053065477,-1883.82,0.00025479,7]
[342705140,1732053065486,-4034.74,0.00025479,7]
[342705142,1732053065496,-500.0,0.00025479,7]
[342705143,1732053065505,-864.59,0.00025479,7]
[342705144,1732053065514,-1666.75,0.00025479,7]
[342705145,1732053065523,-346.733515,0.00025479,7]
[342705147,1732053065533,-346.733515,0.00025479,7]
[342705149,1732053065542,-4593.05,0.00025479,7]
[342705151,1732053065551,-500.0,0.00025479,7]
[342705153,1732053065561,-545.89,0.00025479,7]
[342705155,1732053065576,-500.0,0.00025479,7]
[342705157,1732053065586,-2043.15,0.00025479,7]
[342705159,1732053065595,-500.0,0.00025479,7]
[342705161,1732053065604,-500.0,0.00025479,7]
[342705163,1732053065614,-1257.15,0.00025479,7]
[342705165,1732053065623,-500.0,0.00025479,7]
[342705167,1732053065633,-303.07576439,0.000255,2]
[342705168,1732053065643,-160.0,0.00025656,3]
[342705169,1732053065652,-303.07576439,0.0002575,2]
[342705170,1732053065661,-500.0,0.00025753,7]
[342705171,1732053065670,-978.1,0.00025753,7]
[342705172,1732053065680,-500.0,0.00025753,7]
[342705173,1732053065689,-500.0,0.00025753,7]
[342705174,1732053065699,-151.0,0.00025753,7]
[342705175,1732053065709,-510.92,0.00025753,7]
[342705176,1732053065719,-500.0,0.00025753,7]
[342705177,1732053065729,-500.0,0.00025753,7]
[342705178,1732053065739,-569.3,0.00025753,7]
[342705179,1732053065748,-500.0,0.00025753,7]
[342705180,1732053065758,-718.03,0.00025753,7]
[342705181,1732053065767,-151.0,0.00025753,7]
[342705182,1732053065777,-500.0,0.00025753,7]
[342705183,1732053065787,-500.0,0.00025753,7]
[342705184,1732053065797,-772.0,0.00025753,7]
[342705185,1732053065806,-584.93,0.00025753,7]
[342705186,1732053065815,-500.0,0.00025753,7]
[342705187,1732053065829,-500.0,0.00025753,7]
[342705188,1732053065838,-544.56,0.00025753,7]
[342705189,1732053065848,-200.0,0.00025753,2]
[342705191,1732053065858,-611.0705056,0.00025753,7]
[342705203,1732053065954,-681.78,0.00025753,7]
[342705205,1732053065973,-151.0,0.00025753,7]
[342705207,1732053065984,-500.0,0.00025753,7]
[342705209,1732053065993,-500.0,0.00025753,7]
[342705211,1732053066003,-271.555443,0.00025753,7]
[342705213,1732053066013,-271.555443,0.00025753,7]
[342705215,1732053066022,-500.0,0.00025753,7]
[342705217,1732053066032,-629.534209,0.00025753,7]
[342705219,1732053066041,-636.47,0.00025753,7]
[342705221,1732053066051,-500.0,0.00025753,7]
[342705223,1732053066061,-629.534209,0.00025753,7]
[342705225,1732053066072,-500.0,0.00025753,7]
[342705227,1732053066082,-500.0,0.00025753,7]
[342705228,1732053066092,-151.0,0.00025753,7]
[342705231,1732053066102,-543.11,0.00025753,7]
[342705233,1732053066111,-500.0,0.00025753,7]
[342705235,1732053066121,-365.16944881,0.00025753,7]
[342705237,1732053066130,-500.0,0.00025753,7]
[342705239,1732053066140,-801.54,0.00025753,7]
[342705241,1732053066150,-500.0,0.00025753,7]
[342705243,1732053066159,-628.19,0.00025753,7]
[342705245,1732053066168,-2435.62421,0.00025753,7]
[342705247,1732053066178,-2435.62421,0.00025753,7]
[342705249,1732053066188,-353.408902,0.00025753,7]
[342705251,1732053066197,-593.36,0.00025753,7]
[342705253,1732053066207,-353.408902,0.00025753,7]
[342705255,1732053066217,-826.57,0.00025753,7]
[342705257,1732053066227,-500.0,0.00025753,7]
[342705259,1732053066236,-540.65,0.00025753,7]
[342705261,1732053066246,-500.0,0.00025753,7]
[342705263,1732053066255,-651.22,0.00025753,7]
[342705265,1732053066267,-833.312861,0.00025753,7]
[342705266,1732053066277,-833.312861,0.00025753,7]
[342705269,1732053066287,-500.0,0.00025753,7]
[342705271,1732053066296,-12500.46,0.00025753,7]
[342705273,1732053066306,-1568.28,0.00025753,7]
[342705275,1732053066315,-777.01,0.00025753,7]
[342705276,1732053066327,-6550.16,0.00025753,7]
[342705278,1732053066337,-1076.51,0.00025753,7]
[342705281,1732053066348,-500.0,0.00025753,7]
[342705283,1732053066358,-1659.74,0.00025753,7]
[342705284,1732053066367,-500.0,0.00025753,7]
[342705286,1732053066376,-500.0,0.00025753,7]
[342705288,1732053066386,-612.21,0.00025753,7]
[342705290,1732053066396,-500.0,0.00025753,7]
[342705292,1732053066405,-563.73,0.00025753,7]
[342705294,1732053066414,-500.0,0.00025753,7]
[342705296,1732053066423,-500.0,0.00025753,7]
[342705298,1732053066434,-597.43,0.00025753,7]
[342705300,1732053066444,-500.0,0.00025753,7]
[342705302,1732053066453,-500.0,0.00025753,7]
[342705304,1732053066463,-500.0,0.00025753,7]
[342705306,1732053066472,-651.28,0.00025753,7]
[342705308,1732053066482,-342.58292523,0.00025753,7]
[342705310,1732053066491,-646.08,0.00025753,7]
[342705311,1732053066500,-880.58,0.00025753,7]
[342705313,1732053066510,-500.0,0.00025753,7]
[342705314,1732053066519,-524.52,0.00025753,7]
[342705315,1732053066529,-4172.35,0.00025753,7]
[342705316,1732053066538,-558.47,0.00025753,7]
[342705317,1732053066548,-810.46,0.00025753,7]
[342705318,1732053066558,-500.0,0.00025753,7]
[342705319,1732053066568,-500.0,0.00025753,7]
[342705320,1732053066582,-500.0,0.00025753,7]
[342705321,1732053066592,-631.33,0.00025753,7]
[342705322,1732053066602,-1883.82,0.00025753,7]
[342705323,1732053066611,-4034.74,0.00025753,7]
[342705324,1732053066621,-500.0,0.00025753,7]
[342705326,1732053066631,-864.59,0.00025753,7]
[342705328,1732053066641,-196.652764,0.00025753,7]
[342705330,1732053066651,-196.652764,0.00025753,7]